fUSD/lending_fUSD_20260703
["ID","MTS","AMOUNT","RATE_DAILY","PERIOD"]
[426967478,1783081849000,-6664.78167745,0.000255,2]
[426967473,1783081849000,-160.22257547,0.000249,2]
[426967474,1783081849000,-160.79775304,0.000251,2]
[426967471,1783081849000,-160.22257547,0.000246,2]
[426967470,1783081849000,-160.79775304,0.000246,2]
[426967481,1783081849000,-500.0,0.000265,7]
[426967484,1783081849000,-500.0,0.000265,7]
[426967477,1783081849000,-160.79775304,0.000254,2]
[426967495,1783081849000,-317.0,0.000265,2]
[426967497,1783081849000,-2000.0,0.0002653,2]
[426967486,1783081849000,-500.0,0.000265,7]
[426967498,1783081849000,-185.39838308,0.00026531,2]
[426967496,1783081849000,-230.0,0.00026521,2]
[426967494,1783081849000,-354.4,0.000265,7]
[426967489,1783081849000,-500.0,0.000265,7]
[426967499,1783081849000,-22006.54325967,0.00026532,2]
[426967491,1783081849000,-500.0,0.000265,7]
[426967492,1783081849000,-500.0,0.000265,7]
[426967493,1783081849000,-500.0,0.000265,7]
[426967490,1783081849000,-500.0,0.000265,7]
[426967488,1783081849000,-500.0,0.000265,7]
[426967487,1783081849000,-500.0,0.000265,7]
[426967485,1783081849000,-500.0,0.000265,7]
[426967502,1783081850000,-302.064,0.00025932,2]
[426967503,1783081850000,-520.79633611,0.00026532,2]
[426967501,1783081850000,-160.79775304,0.000256,2]
[426967500,1783081850000,-160.22257547,0.000254,2]
[426967505,1783081853000,1000.0,0.00025702,120]
[426967506,1783081863000,151.0,0.0003013,120]
[426967507,1783081866000,246.72502933,0.0002816,120]
[426967510,1783081933000,151.0,0.0003013,120]
[426967511,1783081948000,151.0,0.0003013,120]
[426967512,1783081965000,151.0,0.0003013,120]
[426967513,1783081979000,151.0,0.0003013,120]
[426967514,1783081991000,151.0,0.0003013,120]
[426967515,1783082024000,151.0,0.0003013,120]
[426967516,1783082039000,151.0,0.0003013,120]
[426967552,1783082921000,3000.0,0.0002569,120]
[426967571,1783082973000,150.0,0.00030136,120]
[426967572,1783083002000,150.0,0.0001284,2]
[426967573,1783083008000,150.0,0.0001284,2]
[426967574,1783083014000,150.0,0.0001284,2]
[426967575,1783083019000,150.0,0.0001284,2]
[426967576,1783083025000,150.0,0.0001284,2]
[426967577,1783083031000,150.30039061,0.0001284,2]
[426967604,1783083032000,-1000.0,0.000165,2]
[426967609,1783083032000,-513.12237384,0.000165,2]
[426967610,1783083032000,-373.77684873,0.000166,2]
[426967607,1783083032000,-200.45891548,0.000165,2]
[426967606,1783083032000,-144.92608344,0.000165,2]
[426967608,1783083032000,-250.0,0.000165,2]
[426967599,1783083032000,-362.06817174,0.000142,2]
[426967603,1783083032000,-172.43287335,0.0001575,2]
[426967602,1783083032000,-57563.96606404,0.00015,2]
[426967601,1783083032000,-195.63,0.000142,2]
[426967600,1783083032000,-296.23759506,0.000142,2]
[426967611,1783083032000,-485.4185,0.000166,2]
[426967605,1783083032000,-1607.73755905,0.000165,2]
[426967612,1783083032000,-824.83,0.000166,2]
[426967618,1783083032000,-160.0,0.00019,2]
[426967616,1783083032000,-934.14157907,0.0001789,2]
[426967628,1783083032000,-1334.17398809,0.0002,2]
[426967627,1783083032000,-323.93990001,0.0002,2]
[426967626,1783083032000,-552.0,0.0002,2]
[426967625,1783083032000,-5533.0,0.0002,2]
[426967620,1783083032000,-1260.11728998,0.0002,2]
[426967623,1783083032000,-4667.31855558,0.0002,2]
[426967613,1783083032000,-492.41777302,0.000166,2]
[426967624,1783083032000,-1190.69306236,0.0002,2]
[426967621,1783083032000,-4592.17528247,0.0002,2]
[426967619,1783083032000,-150.0,0.00019999,2]
[426967615,1783083032000,-491.99,0.00017645,2]
[426967617,1783083032000,-250.0,0.00018706,2]
[426967614,1783083032000,-2283.75113095,0.000166,2]
[426967622,1783083032000,-668.87519441,0.0002,2]
[426967662,1783083038000,-797.51648413,0.00017809,2]
[426967663,1783083038000,-226.25283257,0.00017809,2]
[426967664,1783083038000,-300.25060877,0.0002,2]
[426967667,1783083038000,-6645.07055825,0.0002,2]
[426967666,1783083038000,-601.03761344,0.0002,2]
[426967665,1783083038000,-5442.65979752,0.0002,2]
[426967668,1783083038000,-555.82564882,0.0002,2]
[426967715,1783083039000,-158.73,0.00024658,2]
[426967695,1783083039000,-1852.42,0.00024333,2]
[426967690,1783083039000,-10325.01,0.00024174,2]
[426967694,1783083039000,-214.02,0.00024318,2]
[426967688,1783083039000,-215.21783216,0.00024,2]
[426967697,1783083039000,-5000.0,0.0002435,2]
[426967700,1783083039000,-11491.17,0.00024424,2]
[426967701,1783083039000,-2870.68,0.00024424,2]
[426967699,1783083039000,-500.0,0.00024424,2]
[426967698,1783083039000,-549.06194756,0.00024352,2]
[426967706,1783083039000,-200.0,0.00024424,2]
[426967692,1783083039000,-28514.69,0.00024174,2]
[426967705,1783083039000,-161.29,0.00024424,2]
[426967708,1783083039000,-500.0,0.00024424,3]
[426967717,1783083039000,-152.0,0.00024675,2]
[426967711,1783083039000,-151.0,0.00024614,2]
[426967714,1783083039000,-161.71,0.00024658,2]
[426967707,1783083039000,-2438.87,0.00024424,2]
[426967709,1783083039000,-636.93,0.00024435,2]
[426967713,1783083039000,-176.39,0.00024658,2]
[426967704,1783083039000,-200.0,0.00024424,2]
[426967702,1783083039000,-3413.46,0.00024424,2]
[426967691,1783083039000,-11526.17,0.00024174,2]
[426967689,1783083039000,-2178.75,0.00024174,2]
[426967710,1783083039000,-500.0,0.00024522,2]
[426967669,1783083039000,-17387.43379293,0.0002,2]
[426967670,1783083039000,-229.33572155,0.0002075,2]
[426967671,1783083039000,-150.0,0.00020781,7]
[426967673,1783083039000,-500.0,0.00022243,2]
[426967674,1783083039000,-215.21783216,0.00023,2]
[426967672,1783083039000,-161.96,0.000222,3]
[426967675,1783083039000,-25268.26,0.0002304,2]
[426967677,1783083039000,-1218.91316929,0.00023315,2]
[426967681,1783083039000,-150.0,0.000236,2]
[426967678,1783083039000,-215.21783216,0.00023333,2]
[426967680,1783083039000,-153.0,0.000236,2]
[426967676,1783083039000,-1138.76818905,0.00023157,2]
[426967679,1783083039000,-390.34397431,0.000236,2]
[426967683,1783083039000,-151.0,0.000236,2]
[426967682,1783083039000,-151.0,0.000236,2]
[426967685,1783083039000,-215.21783216,0.00023667,2]
[426967684,1783083039000,-151.0,0.000236,2]
[426967686,1783083039000,-217.96810301,0.0002381,2]
[426967687,1783083039000,-500.0,0.00023825,2]
[426967696,1783083039000,-215.21783216,0.00024333,2]
[426967693,1783083039000,-426.5705486,0.00024246,2]
[426967712,1783083039000,-377.73100166,0.00024615,2]
[426967703,1783083039000,-1794.85,0.00024424,2]
[426967718,1783083039000,-500.0,0.00024698,2]
[426967748,1783083039000,-270.0,0.00025,2]
[426967749,1783083039000,-316.0,0.00025,2]
[426967751,1783083039000,-154.0,0.00025,2]
[426967752,1783083039000,-314.0,0.00025,2]
[426967753,1783083039000,-453.0,0.00025,2]
[426967750,1783083039000,-215.21783216,0.00025,2]
[426967743,1783083039000,-499.99,0.0002498,2]
[426967746,1783083039000,-6513.87119964,0.0002499,2]
[426967744,1783083039000,-150.0,0.00024989,2]
[426967745,1783083039000,-162.08,0.00024989,2]
[426967755,1783083039000,-153.0,0.00025,2]
[426967765,1783083039000,-500.0,0.00025081,2]
[426967757,1783083039000,-153.0,0.00025,2]
[426967758,1783083039000,-153.0,0.00025,2]
[426967756,1783083039000,-404.0,0.00025,2]
[426967764,1783083039000,-2870.68,0.00025035,2]
[426967763,1783083039000,-7132.0,0.00025,2]
[426967759,1783083039000,-466.0,0.00025,2]
[426967761,1783083039000,-192.0,0.00025,2]
[426967760,1783083039000,-209.0,0.00025,2]
[426967716,1783083039000,-215.21783216,0.00024667,2]
[426967747,1783083039000,-2041.30745593,0.00024997,2]
[426967742,1783083039000,-9999.99,0.0002498,2]
[426967754,1783083039000,-154.0,0.00025,2]
[426967739,1783083039000,-299.99,0.0002498,7]
[426967721,1783083039000,-1703.2922,0.0002488,2]
[426967737,1783083039000,-4999.99,0.0002498,2]
[426967723,1783083039000,-7560.67083087,0.0002488,2]
[426967727,1783083039000,-283.58718279,0.0002491,2]
[426967720,1783083039000,-1000.0,0.00024844,2]
[426967722,1783083039000,-4156.9751,0.0002488,2]
[426967728,1783083039000,-988.49,0.00024961,7]
[426967726,1783083039000,-182.50042375,0.0002491,2]
[426967719,1783083039000,-150.0,0.00024734,2]
[426967725,1783083039000,-190.44287949,0.0002491,2]
[426967724,1783083039000,-158.30299794,0.00024904,2]
[426967729,1783083039000,-500.0,0.00024972,2]
[426967731,1783083039000,-325.59837688,0.00024979,2]
[426967732,1783083039000,-4130.04,0.0002498,2]
[426967740,1783083039000,-9999.99,0.0002498,2]
[426967734,1783083039000,-9999.99,0.0002498,2]
[426967762,1783083039000,-1008.53053555,0.00025,2]
[426967735,1783083039000,-459.84,0.0002498,2]
[426967733,1783083039000,-9999.99,0.0002498,2]
[426967741,1783083039000,-150.99,0.0002498,2]
[426967738,1783083039000,-3286.0,0.0002498,2]
[426967730,1783083039000,-489.31,0.00024973,2]
[426967736,1783083039000,-1343.11,0.0002498,2]
[426967794,1783083040000,-500.0,0.00025459,2]
[426967792,1783083040000,-600.51,0.00025448,2]
[426967790,1783083040000,-3540.36553355,0.00025421,2]
[426967786,1783083040000,-336.99361346,0.00025397,30]
[426967788,1783083040000,-288.88391574,0.00025408,2]
[426967795,1783083040000,-500.0,0.00025459,2]
[426967787,1783083040000,-5528.0,0.000254,5]
[426967789,1783083040000,-269.43306277,0.00025408,2]
[426967800,1783083040000,-336.99361346,0.00025479,30]
[426967796,1783083040000,-500.0,0.00025459,2]
[426967793,1783083040000,-500.0,0.00025459,2]
[426967803,1783083040000,-497.3014774,0.000255,2]
[426967783,1783083040000,-215.21783216,0.00025333,2]
[426967791,1783083040000,-225.1146275,0.00025434,2]
[426967768,1783083040000,-197.0,0.000251,7]
[426967781,1783083040000,-7560.67083087,0.00025284,2]
[426967776,1783083040000,-500.0,0.00025246,2]
[426967777,1783083040000,-328.0,0.00025279,2]
[426967775,1783083040000,-2962.11160284,0.00025241,2]
[426967771,1783083040000,-508.7927224,0.00025156,7]
[426967774,1783083040000,-3769.18,0.00025219,2]
[426967773,1783083040000,-187.16,0.00025161,2]
[426967772,1783083040000,-891.44,0.00025161,2]
[426967779,1783083040000,-1081.0,0.00025279,2]
[426967769,1783083040000,-2500.0,0.00025141,2]
[426967767,1783083040000,-7560.67083087,0.00025082,2]
[426967766,1783083040000,-535.21844778,0.00025081,2]
[426967806,1783083040000,-162.51409539,0.000255,2]
[426967784,1783083040000,-2000.0,0.00025359,2]
[426967801,1783083040000,-7560.67083087,0.00025487,2]
[426967828,1783083040000,-2868702.33832266,0.000257,7]
[426967798,1783083040000,-1915.26,0.0002546,2]
[426967830,1783083040000,-1784.90754664,0.00024897,2]
[426967831,1783083040000,-4400.00934916,0.000257,7]
[426967829,1783083040000,-24.36818894,0.000257,7]
[426967832,1783083040000,-501.97361289,0.000257,7]
[426967825,1783083040000,-336.99361346,0.00025699,30]
[426967826,1783083040000,-66642.97956256,0.000257,2]
[426967827,1783083040000,-6900.0,0.000257,9]
[426967823,1783083040000,-372.63828444,0.0002569,2]
[426967824,1783083040000,-372.63828444,0.0002569,2]
[426967820,1783083040000,-4969.78188658,0.00025686,2]
[426967822,1783083040000,-7560.67083087,0.00025689,2]
[426967805,1783083040000,-174.96134574,0.000255,2]
[426967819,1783083040000,-215.21783216,0.00025667,2]
[426967815,1783083040000,-315.24764111,0.000256,2]
[426967821,1783083040000,-240.75010092,0.00025686,2]
[426967816,1783083040000,-822.33060327,0.00025622,2]
[426967797,1783083040000,-364983.76643844,0.0002546,2]
[426967799,1783083040000,-160.506592,0.0002546,2]
[426967802,1783083040000,-3251.30874896,0.000255,2]
[426967812,1783083040000,-4600.0,0.000256,9]
[426967808,1783083040000,-500.0,0.0002552,2]
[426967810,1783083040000,-160.0,0.0002554,2]
[426967804,1783083040000,-160.22257549,0.000255,2]
[426967809,1783083040000,-216.74224685,0.0002554,2]
[426967818,1783083040000,-2870.68,0.00025645,2]
[426967811,1783083040000,-336.99361346,0.00025589,30]
[426967817,1783083040000,-163.89200631,0.00025622,2]
[426967813,1783083040000,-275.8386367,0.000256,2]
[426967814,1783083040000,-174.34275616,0.000256,4]
[426967807,1783083040000,-2300.0,0.000255,9]
[426967840,1783083043000,-619.96773755,0.000257,7]
[426967839,1783083043000,-347.4,0.000257,7]
[426967838,1783083043000,-4827.86257151,0.000257,7]
[426967837,1783083043000,-160.74,0.00024658,2]
[426967836,1783083043000,-156.6846256,0.0002204,2]
[426967845,1783083046000,-12557.55324306,0.000257,7]
[426967848,1783083046000,-270.15,0.000257,7]
[426967847,1783083046000,-253.92422315,0.000257,7]
[426967846,1783083046000,-2909.27504316,0.000257,7]
[426967849,1783083072000,167.250956,0.00025945,120]
[426967850,1783083186000,274.38,0.00015665,7]
[426967851,1783083305000,872201.1094,0.00024557,120]
[426967857,1783083357000,322.07,0.00029759,120]
[426967858,1783083373000,50644.9033,0.00024557,120]
[426967865,1783083493000,150.0,0.00015665,7]
[426967866,1783083649000,164.07102447,0.00016,3]
[426967868,1783083694000,390.34397431,0.00013689,3]
[426967869,1783083715000,202.95147431,0.00016,3]
[426967870,1783083845000,500.0,0.00016,3]
[426967872,1783083974000,-399.61,0.00022337,30]
[426967871,1783083974000,-399.61,0.00022101,30]
[426967873,1783084031000,-221.94320478,0.00024658,30]
[426967879,1783084056000,-852.14,0.00027397,90]
[426967881,1783084141000,2000.0,0.00030135,120]
[426967884,1783084172000,-197.22767965,0.00014699,2]
[426967885,1783084172000,-600.0,0.00014709,2]
[426967883,1783084172000,-407.533733,0.00014689,2]
[426967887,1783084172000,-150.0,0.00014846,2]
[426967888,1783084172000,-444.72528267,0.00014879,2]
[426967886,1783084172000,-164.11,0.000148,2]
[426967903,1783084232000,-12213.46494288,0.0002,2]
[426967917,1783084232000,-150.0,0.00020475,2]
[426967905,1783084232000,-2140.22,0.00020113,2]
[426967900,1783084232000,-262.31281394,0.00019699,2]
[426967913,1783084232000,-1380.8758179,0.00020409,2]
[426967915,1783084232000,-399.61,0.00020446,2]
[426967901,1783084232000,-11433.23505712,0.0002,2]
[426967898,1783084232000,-438.47,0.000186,2]
[426967908,1783084232000,-1060.54,0.00020286,2]
[426967907,1783084232000,-399.61,0.0002021,2]
[426967899,1783084232000,-786.026386,0.00019014,2]
[426967896,1783084232000,-250.0,0.00016158,2]
[426967895,1783084232000,-600.0,0.00016158,2]
[426967893,1783084232000,-150.0,0.00014993,2]
[426967894,1783084232000,-150.0,0.0001514,2]
[426967892,1783084232000,-155.27471733,0.00014879,2]
[426967910,1783084232000,-471.5441821,0.00020409,2]
[426967918,1783084232000,-2003.16,0.00020481,2]
[426967897,1783084232000,-421.42369685,0.00016431,2]
[426967924,1783084232000,-838.0,0.00020683,2]
[426967919,1783084232000,-187.16,0.00020489,2]
[426967936,1783084232000,-3600.0,0.00021216,2]
[426967933,1783084232000,-4308.6465954,0.00021215,2]
[426967934,1783084232000,-5585.06942899,0.00021216,2]
[426967935,1783084232000,-550.23948953,0.00021216,2]
[426967932,1783084232000,-399.61,0.00021156,2]
[426967930,1783084232000,-399.61,0.00020919,2]
[426967931,1783084232000,-3413.46,0.0002112,2]
[426967937,1783084232000,-1287.06684916,0.00021216,2]
[426967925,1783084232000,-500.0,0.00020708,2]
[426967928,1783084232000,-150.0,0.00020781,7]
[426967923,1783084232000,-399.61,0.00020683,2]
[426967929,1783084232000,-471.96,0.00020838,2]
[426967927,1783084232000,-3769.18,0.00020732,2]
[426967921,1783084232000,-161.61,0.00020653,2]
[426967922,1783084232000,-500.0,0.00020653,3]
[426967926,1783084232000,-891.44,0.00020713,2]
[426967920,1783084232000,-1794.85,0.00020609,2]
[426967976,1783084233000,-500.0,0.00022915,2]
[426967972,1783084233000,-299.99,0.00022562,7]
[426967964,1783084233000,-9999.99,0.00022562,2]
[426967973,1783084233000,-150.99,0.00022562,2]
[426967967,1783084233000,-4999.99,0.00022562,2]
[426967968,1783084233000,-9999.99,0.00022562,2]
[426967974,1783084233000,-629.83,0.00022562,2]
[426967969,1783084233000,-1343.11,0.00022562,2]
[426967990,1783084233000,-194.0,0.00023367,2]
[426967971,1783084233000,-9999.99,0.00022562,2]
[426967975,1783084233000,-500.0,0.00022641,2]
[426967983,1783084233000,-11491.17,0.00023193,2]
[426967986,1783084233000,-4000.0,0.00023361,2]
[426967978,1783084233000,-338.02500763,0.00023,2]
[426967981,1783084233000,-10202.93874811,0.00023168,2]
[426967980,1783084233000,-152.9,0.0002311,2]
[426967982,1783084233000,-500.0,0.00023189,2]
[426967979,1783084233000,-7132.0,0.00023,2]
[426967984,1783084233000,-1846.62413365,0.00023268,2]
[426967966,1783084233000,-459.84,0.00022562,2]
[426967985,1783084233000,-338.02500763,0.00023333,2]
[426967987,1783084233000,-500.0,0.00023367,2]
[426967991,1783084233000,-194.0,0.00023367,2]
[426967977,1783084233000,-6513.87119964,0.0002299,2]
[426967965,1783084233000,-499.99,0.00022562,2]
[426967959,1783084233000,-28514.69,0.00022562,2]
[426967963,1783084233000,-378.2,0.00022562,2]
[426967938,1783084233000,-1813.16392796,0.00021216,2]
[426967940,1783084233000,-2837.73,0.00021216,2]
[426967939,1783084233000,-12432.72030436,0.00021216,2]
[426967941,1783084233000,-200.0,0.0002126,2]
[426967942,1783084233000,-466.0,0.0002126,2]
[426967950,1783084233000,-307.39,0.00021644,4]
[426967944,1783084233000,-200.0,0.00021365,2]
[426967943,1783084233000,-657.26,0.00021273,2]
[426967946,1783084233000,-399.61,0.00021392,2]
[426967951,1783084233000,-399.61,0.00021865,2]
[426967949,1783084233000,-399.61,0.00021628,2]
[426967970,1783084233000,-11526.17,0.00022562,2]
[426967945,1783084233000,-4949.28,0.0002137,2]
[426967948,1783084233000,-5216.0,0.00021604,2]
[426967953,1783084233000,-225.84,0.00022028,2]
[426967952,1783084233000,-5000.0,0.00021918,2]
[426967954,1783084233000,-161.61,0.00022374,2]
[426967955,1783084233000,-12183.27,0.00022562,2]
[426967957,1783084233000,-9999.99,0.00022562,2]
[426967958,1783084233000,-1495.97,0.00022562,2]
[426967956,1783084233000,-9999.99,0.00022562,2]
[426967960,1783084233000,-54802.15,0.00022562,2]
[426967962,1783084233000,-999.99,0.00022562,2]
[426967961,1783084233000,-9999.99,0.00022562,2]
[426967947,1783084233000,-161.96,0.00021515,3]
[426967989,1783084233000,-194.0,0.00023367,2]
[426968005,1783084233000,-13624.88767319,0.00023649,2]
[426967992,1783084233000,-194.0,0.00023367,2]
[426968023,1783084233000,-150.0,0.00024115,4]
[426968022,1783084233000,-150.0,0.00024115,4]
[426968026,1783084233000,-500.0,0.00024173,2]
[426968025,1783084233000,-150.0,0.00024115,4]
[426968024,1783084233000,-150.0,0.00024115,4]
[426968033,1783084233000,-10325.01,0.00024174,2]
[426968027,1783084233000,-500.0,0.00024173,2]
[426968032,1783084233000,-2178.75,0.00024174,2]
[426968031,1783084233000,-500.0,0.00024173,2]
[426968028,1783084233000,-527.90478303,0.00024173,2]
[426968030,1783084233000,-500.0,0.00024173,2]
[426968034,1783084233000,-23382.72,0.00024174,2]
[426968036,1783084233000,-1846.6241336,0.00024231,2]
[426968037,1783084233000,-8904.8586328,0.00024248,2]
[426968035,1783084233000,-166.42,0.00024208,2]
[426968038,1783084233000,-561.22,0.000243,14]
[426968041,1783084233000,-13624.88767319,0.00024412,2]
[426968044,1783084233000,-8904.8586328,0.00024599,2]
[426968042,1783084233000,-150.0,0.00024413,4]
[426968043,1783084233000,-4000.0,0.00024529,2]
[426968040,1783084233000,-549.06194756,0.00024352,2]
[426968039,1783084233000,-338.02500763,0.00024333,2]
[426967988,1783084233000,-500.0,0.00023367,2]
[426968011,1783084233000,-322.07,0.00023807,2]
[426968015,1783084233000,-4000.0,0.00023945,2]
[426968029,1783084233000,-500.0,0.00024173,2]
[426968019,1783084233000,-161.61,0.00024096,2]
[426968018,1783084233000,-13624.88767319,0.00024031,2]
[426967993,1783084233000,-194.0,0.00023367,2]
[426967995,1783084233000,-535.21844778,0.00023367,2]
[426967994,1783084233000,-194.0,0.00023367,2]
[426967998,1783084233000,-225.84,0.00023397,2]
[426967997,1783084233000,-9999.99,0.00023368,2]
[426968000,1783084233000,-500.0,0.00023463,2]
[426968009,1783084233000,-167.250956,0.00023763,14]
[426968008,1783084233000,-500.0,0.00023737,2]
[426968001,1783084233000,-500.0,0.00023508,2]
[426967999,1783084233000,-500.0,0.00023411,2]
[426968002,1783084233000,-150.0,0.00023514,2]
[426967996,1783084233000,-176.46,0.00023368,2]
[426968016,1783084233000,-338.02500763,0.00024,2]
[426968006,1783084233000,-338.02500763,0.00023667,2]
[426968003,1783084233000,-500.0,0.00023647,2]
[426968007,1783084233000,-489.31,0.00023679,2]
[426968010,1783084233000,-162.62,0.00023804,2]
[426968013,1783084233000,-158.44,0.00023853,2]
[426968012,1783084233000,-217.96810301,0.00023845,2]
[426968021,1783084233000,-150.0,0.00024115,4]
[426968020,1783084233000,-156.31447816,0.00024115,4]
[426968017,1783084233000,-461.43308934,0.00024011,2]
[426968014,1783084233000,-8904.8586328,0.00023898,2]
[426968004,1783084233000,-500.0,0.00023647,2]
[426968082,1783084234000,-5000.0,0.000249,9]
[426968080,1783084234000,-13624.88767319,0.00024793,2]
[426968077,1783084234000,-8664.17,0.00024744,7]
[426968079,1783084234000,-500.0,0.00024793,2]
[426968078,1783084234000,-582.9167636,0.00024793,2]
[426968074,1783084234000,-150.0,0.00024744,2]
[426968081,1783084234000,-2500.0,0.000248,9]
[426968075,1783084234000,-150.0,0.00024744,2]
[426968076,1783084234000,-184.79566814,0.00024744,2]
[426968085,1783084234000,-158.30299794,0.00024909,2]
[426968073,1783084234000,-500.0,0.0002474,2]
[426968084,1783084234000,-182.44341685,0.00024909,2]
[426968091,1783084234000,-333.0,0.00025,2]
[426968087,1783084234000,-8904.8586328,0.00024949,2]
[426968088,1783084234000,-822.33060327,0.00024964,2]
[426968089,1783084234000,-338.02500763,0.00025,2]
[426968090,1783084234000,-284.0,0.00025,2]
[426968092,1783084234000,-154.0,0.00025,2]
[426968083,1783084234000,-190.3943933,0.00024909,2]
[426968104,1783084234000,-437.0,0.000251,7]
[426968094,1783084234000,-476.0,0.00025,2]
[426968105,1783084234000,-4000.0,0.00025113,2]
[426968093,1783084234000,-330.0,0.00025,2]
[426968099,1783084234000,-161.0,0.00025,2]
[426968086,1783084234000,-287.71126071,0.00024926,2]
[426968071,1783084234000,-150.0,0.00024711,7]
[426968047,1783084234000,-900.0,0.00024657,2]
[426968070,1783084234000,-4947.0,0.0002471,5]
[426968096,1783084234000,-153.0,0.00025,2]
[426968046,1783084234000,-150.0,0.00024657,2]
[426968045,1783084234000,-1000.0,0.00024657,2]
[426968048,1783084234000,-151.0,0.00024657,2]
[426968050,1783084234000,-151.0,0.00024657,2]
[426968049,1783084234000,-913.0,0.00024657,2]
[426968052,1783084234000,-153.0,0.00024657,2]
[426968055,1783084234000,-494.93400548,0.00024657,2]
[426968051,1783084234000,-906.0,0.00024657,2]
[426968058,1783084234000,-151.0,0.00024657,2]
[426968057,1783084234000,-151.0,0.00024657,2]
[426968054,1783084234000,-151.0,0.00024657,2]
[426968053,1783084234000,-151.0,0.00024657,2]
[426968059,1783084234000,-152.0,0.00024657,2]
[426968056,1783084234000,-150.0,0.00024657,2]
[426968062,1783084234000,-151.0,0.00024657,2]
[426968061,1783084234000,-152.0,0.00024657,2]
[426968060,1783084234000,-152.0,0.00024657,2]
[426968063,1783084234000,-176.39,0.00024658,2]
[426968064,1783084234000,-163.7,0.00024658,2]
[426968065,1783084234000,-160.45,0.00024658,2]
[426968066,1783084234000,-338.02500763,0.00024667,2]
[426968067,1783084234000,-822.33060327,0.0002469,2]
[426968069,1783084234000,-327.39794822,0.00024699,2]
[426968068,1783084234000,-163.89200631,0.0002469,2]
[426968072,1783084234000,-1302.83246646,0.00024716,2]
[426968097,1783084234000,-425.0,0.00025,2]
[426968095,1783084234000,-154.0,0.00025,2]
[426968102,1783084234000,-498.43664199,0.00025033,2]
[426968135,1783084234000,-150.0,0.00025455,7]
[426968129,1783084234000,-91068.5681049,0.0002545,2]
[426968137,1783084234000,-500.0,0.00025455,2]
[426968136,1783084234000,-150.0,0.00025455,7]
[426968131,1783084234000,-1077.9072377,0.00025454,2]
[426968134,1783084234000,-150.0,0.00025455,7]
[426968138,1783084234000,-500.0,0.00025455,2]
[426968148,1783084234000,-500.0,0.00025456,2]
[426968147,1783084234000,-518.69122523,0.00025456,2]
[426968139,1783084234000,-500.0,0.00025455,2]
[426968146,1783084234000,-500.0,0.00025456,2]
[426968150,1783084234000,-500.0,0.00025456,2]
[426968140,1783084234000,-500.0,0.00025455,2]
[426968143,1783084234000,-500.0,0.00025456,2]
[426968145,1783084234000,-500.0,0.00025456,2]
[426968142,1783084234000,-500.0,0.00025456,2]
[426968141,1783084234000,-500.0,0.00025455,2]
[426968144,1783084234000,-510.43791301,0.00025456,2]
[426968151,1783084234000,-500.0,0.00025456,2]
[426968153,1783084234000,-500.0,0.00025456,2]
[426968155,1783084234000,-500.0,0.00025459,2]
[426968154,1783084234000,-500.0,0.00025456,2]
[426968152,1783084234000,-500.0,0.00025456,2]
[426968098,1783084234000,-161.0,0.00025,2]
[426968156,1783084234000,-500.0,0.00025459,2]
[426968132,1783084234000,-426.5705487,0.00025454,2]
[426968133,1783084234000,-3011.0248963,0.00025454,2]